bitfinex/quotes_ETHUSD_20250602
["timestamp","ask_amount","ask_price","bid_price","bid_amount"]
[1748825832436,7.23916495,2534.4,2533.0,3.94773239]
[1748825832657,0.7858,2534.1,2533.8,3.94662371]
[1748825832817,0.7858,2534.1,2533.9,3.94648387]
[1748825835275,2.37,2534.0,2533.9,3.94648387]
[1748825835574,0.7858,2534.1,2533.9,3.94648387]
[1748825837453,0.7858,2534.1,2533.8,3.94663359]
[1748825838166,0.7858,2534.1,2533.4,5.01125784]
[1748825838167,0.7858,2534.1,2533.9,3.94648239]
[1748825841985,0.7858,2534.1,2533.8,3.94658396]
[1748825842654,0.7858,2534.1,2533.9,3.9464826]
[1748825842861,0.7858,2534.1,2533.8,3.94659524]
[1748825843061,0.7858,2534.1,2533.9,3.94639513]
[1748825843653,5.24423436,2534.3,2534.0,3.94632991]
[1748825844184,4.8681,2534.3,2534.0,3.94632991]
[1748825844387,4.8681,2534.3,2533.9,3.94645851]
[1748825845179,8.81397738,2534.3,2533.8,3.94654162]
[1748825845865,4.8681,2534.3,2533.9,3.946484]
[1748825846404,8.81397194,2534.3,2533.8,3.9466414]
[1748825846757,8.81397194,2534.3,2533.9,3.94648299]
[1748825846950,4.8681,2534.3,2533.7,4.74625816]
[1748825847267,4.8681,2534.3,2533.8,4.42111246]
[1748825847808,8.81397551,2534.3,2533.8,4.42111246]
[1748825847986,8.81397551,2534.3,2533.9,3.9464771]
[1748825848511,8.81397551,2534.3,2533.8,4.42120596]
[1748825849607,8.81397551,2534.3,2533.8,3.94658014]
[1748825850711,0.8091,2534.3,2533.5,4.8764]
[1748825850927,8.8316,2534.5,2534.1,3.94608239]
[1748825851135,0.37617911,2534.4,2534.0,3.9462793]
[1748825851331,8.8316,2534.5,2534.1,3.94617418]
[1748825851524,0.37619016,2534.4,2534.1,3.94607841]
[1748825851812,0.37619016,2534.3,2534.1,3.94607841]
[1748825852018,0.8316,2534.5,2534.1,3.94607841]
[1748825852182,0.37620411,2534.4,2534.1,3.94607841]
[1748825852483,0.37620411,2534.3,2534.1,3.94607841]
[1748825852682,0.37626485,2534.4,2534.2,3.94589774]
[1748825852910,8.00346805,2534.6,2534.1,4.81831149]
[1748825853077,0.37627534,2534.5,2534.1,3.94609997]
[1748825853282,0.37627871,2534.4,2534.1,3.94609997]
[1748825853492,16.00346805,2534.6,2534.1,3.94609997]
[1748825853693,16.00346805,2534.6,2533.9,0.8298]
[1748825853694,0.37634096,2534.5,2533.9,0.8298]
[1748825853888,0.37634096,2534.4,2534.2,3.9459409]
[1748825854094,12.058,2534.6,2534.2,3.9459409]
[1748825854296,0.37634303,2534.5,2534.2,3.9459409]
[1748825854616,0.37634303,2534.4,2533.9,4.77623738]
[1748825854795,16.00347603,2534.6,2534.1,3.94617329]
[1748825855097,0.37628359,2534.5,2534.1,3.94617329]
[1748825855413,0.37628359,2534.4,2534.0,0.75195985]
[1748825855715,16.0034799,2534.6,2534.1,3.94615768]
[1748825855880,0.37632,2534.5,2534.1,3.94615768]
[1748825856081,0.37632,2534.4,2534.1,4.89359317]
[1748825856277,16.0034799,2534.6,2534.1,4.89359317]
[1748825856478,0.37637998,2534.5,2534.1,4.89359317]
[1748825856719,0.37637998,2534.4,2534.1,4.89359317]
[1748825856919,16.0034799,2534.6,2534.1,4.89359317]
[1748825857115,0.37635087,2534.5,2534.1,4.89359317]
[1748825857323,0.37635087,2534.4,2534.1,4.89359317]
[1748825857486,16.00347443,2534.6,2534.1,4.89359317]
[1748825857689,0.37635808,2534.5,2534.1,4.89359317]
[1748825857980,0.37635808,2534.4,2534.1,4.89359317]
[1748825858210,3.94564934,2534.5,2534.1,0.94743549]
[1748825858410,0.37634403,2534.4,2534.1,0.94743549]
[1748825858610,3.94564934,2534.5,2534.1,0.94743549]
[1748825858820,0.37634326,2534.4,2534.1,0.94743549]
[1748825859020,3.94564934,2534.5,2534.1,0.94743549]
[1748825859221,0.3763436,2534.4,2534.1,0.94743549]
[1748825859521,3.94564934,2534.5,2534.1,0.94743549]
[1748825859725,0.37640431,2534.4,2534.1,0.94743549]
[1748825859926,3.94564934,2534.5,2534.1,0.94743549]
[1748825860230,0.3764046,2534.4,2534.1,0.94743549]
[1748825860400,3.94564934,2534.5,2534.1,0.94743549]
[1748825860603,0.37648407,2534.4,2534.1,0.94743549]
[1748825860787,3.94564934,2534.5,2534.1,0.94743549]
[1748825860988,0.37648488,2534.4,2534.1,0.94743549]
[1748825861187,3.94564934,2534.5,2534.1,0.94743549]
[1748825861505,0.37648392,2534.4,2534.1,0.94743549]
[1748825861709,3.94564934,2534.5,2534.1,0.94743549]
[1748825861909,4.32231039,2534.4,2534.1,0.94743549]
[1748825862109,3.94573985,2534.4,2534.0,0.75195985]
[1748825862338,1.19752924,2534.3,2533.9,3.9463976]
[1748825862640,1.19752924,2534.3,2533.7,4.72686932]
[1748825862641,4.7668009,2534.3,2533.8,3.94656736]
[1748825863108,0.8209,2534.3,2533.9,3.94647947]
[1748825864120,4.76678877,2534.3,2533.8,3.94652424]
[1748825864325,0.8209,2534.3,2533.9,3.94638904]
[1748825864946,0.8209,2534.3,2534.0,3.94631368]
[1748825868364,0.8209,2534.3,2533.9,3.94648329]
[1748825868365,0.7555,2534.5,2533.9,3.94648329]
[1748825868530,0.37680052,2534.4,2534.1,3.94608654]
[1748825868731,0.37680052,2534.3,2534.1,3.94608654]
[1748825868969,4.8125,2534.5,2534.1,3.94608654]
[1748825869268,0.37680891,2534.4,2534.1,3.94608654]
[1748825869468,0.37680891,2534.3,2534.1,3.94608654]
[1748825869667,4.8125,2534.5,2534.1,3.94608654]
[1748825869846,0.37681436,2534.4,2534.1,3.94608654]
[1748825870044,0.37681436,2534.3,2534.1,3.94608654]
[1748825870364,4.8125,2534.5,2534.1,3.94608654]
[1748825870545,0.37681865,2534.4,2534.1,3.94608654]
[1748825870844,0.37681865,2534.3,2534.1,3.94608654]
[1748825871045,4.8125,2534.5,2534.1,3.94608654]
[1748825871367,0.37681731,2534.4,2534.1,3.94605985]
[1748825871567,0.37681731,2534.3,2534.1,3.94605985]
[1748825871767,4.8125,2534.5,2534.1,3.94605985]
[1748825872069,0.37684283,2534.4,2534.1,3.94605985]
[1748825872269,0.37684283,2534.3,2534.1,3.94605985]
[1748825872566,4.8125,2534.5,2534.1,3.94605985]
[1748825872813,0.37686896,2534.4,2534.2,3.94586879]
[1748825873073,4.057,2534.6,2534.4,3.9456867]
[1748825873230,0.37689893,2534.5,2534.4,3.9456867]
[1748825873764,0.37689893,2534.5,2534.3,3.94578086]
[1748825873968,0.7543,2534.7,2534.4,3.94567191]
[1748825874156,0.37684238,2534.6,2534.4,3.94567191]
[1748825874335,0.37684238,2534.5,2534.4,3.94567191]
[1748825874975,0.37684238,2534.5,2534.3,3.94577727]
[1748825875138,0.7543,2534.7,2534.3,3.94577727]
[1748825875337,0.37678648,2534.6,2534.3,3.94577727]
[1748825875556,0.37678648,2534.5,2534.3,3.94577727]
[1748825875761,0.7543,2534.7,2534.3,3.94577727]
[1748825876074,0.376763,2534.6,2534.3,3.94577727]
[1748825876268,0.376763,2534.5,2534.3,3.94577727]
[1748825876439,0.7543,2534.7,2534.3,3.94577727]
[1748825876639,0.37674229,2534.6,2534.3,3.94577727]
[1748825876834,0.37674229,2534.5,2534.3,3.94577727]
[1748825877040,0.7543,2534.7,2534.3,3.94577727]
[1748825877370,0.37674869,2534.6,2534.3,3.94577727]
[1748825877567,0.37674869,2534.5,2534.3,3.94577727]
[1748825877736,0.7543,2534.7,2534.3,3.94577727]
[1748825877937,0.37673119,2534.6,2534.3,3.94577727]
[1748825878137,0.37673119,2534.5,2534.4,3.94570707]
[1748825879782,0.37675697,2534.5,2534.4,3.94570707]
[1748825879952,4.056,2534.8,2534.4,4.73486119]
[1748825880284,0.37676101,2534.7,2534.4,3.94570707]
[1748825880438,0.37676101,2534.6,2534.4,3.94570707]
[1748825880639,5.24909706,2534.9,2534.5,3.94552823]
[1748825880640,1.30414622,2534.9,2534.5,3.94552823]
[1748825880853,4.43278278,2534.8,2534.6,3.94532677]
[1748825881065,0.37678278,2534.7,2534.6,3.94532677]
[1748825881240,0.37678278,2534.7,2534.5,3.94547729]
[1748825881609,0.37678278,2534.6,2534.5,3.94547729]
[1748825881785,0.37678278,2534.6,2534.4,3.94561982]
[1748825882089,8.00110152,2534.8,2534.4,3.94561982]
[1748825882378,4.32209757,2534.7,2534.1,4.7241201]
[1748825882581,0.37681786,2534.6,2534.3,3.94584008]
[1748825882754,0.37681786,2534.6,2534.1,4.72408583]
[1748825882755,3.94533031,2534.7,2534.2,3.94599635]
[1748825882954,1.15141537,2534.6,2534.2,3.94599635]
[1748825883154,0.7746,2534.6,2534.2,3.94599635]
[1748825883470,0.7746,2534.6,2534.2,3.94587813]
[1748825883775,0.7746,2534.6,2534.3,3.94582734]
[1748825883973,0.3767997,2534.5,2533.9,5.9242]
[1748825884180,0.7746,2534.6,2533.9,5.9242]
[1748825884181,0.7746,2534.6,2534.2,3.94594804]
[1748825884384,0.37680732,2534.5,2534.2,3.94594804]
[1748825884676,0.7746,2534.6,2534.3,3.94585006]
[1748825884876,0.37679412,2534.5,2534.3,3.94585006]
[1748825885057,0.7746,2534.6,2534.3,3.94586276]
[1748825885257,0.37687494,2534.5,2534.3,3.94586276]
[1748825885482,0.7746,2534.6,2534.3,3.94586276]
[1748825885808,0.37692262,2534.5,2534.3,3.94586276]
[1748825886105,0.7746,2534.6,2534.3,3.94586276]
[1748825886106,0.7746,2534.6,2534.3,0.78918717]
[1748825886303,0.8494,2534.9,2534.5,3.945477]
[1748825886464,0.37694629,2534.8,2534.5,3.945477]
[1748825886660,0.37694629,2534.7,2534.5,3.945477]
[1748825886881,8.8493362,2534.9,2534.5,3.945477]
[1748825887079,0.37681162,2534.8,2534.4,3.94561836]
[1748825887280,0.37681162,2534.7,2534.3,4.73287087]
[1748825887478,0.37681162,2534.6,2534.3,4.73287087]
[1748825887668,3.9451661,2534.8,2534.3,4.73287087]
[1748825887877,0.37678034,2534.7,2534.3,4.73287087]
[1748825888078,0.37678034,2534.6,2534.3,4.73287087]
[1748825888314,3.9451661,2534.8,2534.3,4.73287087]
[1748825888518,0.37676029,2534.7,2534.4,3.94570536]
[1748825888698,0.37676029,2534.6,2534.3,4.73289575]
[1748825888881,3.9451661,2534.8,2534.3,4.73289575]
[1748825889083,0.37675651,2534.7,2534.3,3.94579575]
[1748825889322,0.37675651,2534.6,2534.3,3.94579575]
[1748825889506,3.9451661,2534.8,2534.3,3.94579575]
[1748825889707,0.37674854,2534.7,2534.3,3.94579575]
[1748825890017,0.37674854,2534.6,2534.3,3.94579575]
[1748825890183,3.9451661,2534.8,2534.3,3.94579575]
[1748825890515,0.37674483,2534.7,2534.3,3.94579575]
[1748825890720,0.37674483,2534.6,2534.3,3.94579575]
[1748825890906,3.9451661,2534.8,2534.3,3.94579575]
[1748825891077,0.37674334,2534.7,2534.3,3.94579575]
[1748825891281,0.7559,2534.6,2534.3,3.94579575]
[1748825891896,1.3059,2534.8,2534.4,3.94568959]
[1748825892221,0.37677833,2534.7,2534.4,3.94568959]
[1748825892420,0.37677833,2534.6,2534.4,3.94568959]
[1748825892622,1.3059,2534.8,2534.4,3.94568959]
[1748825892809,0.37677666,2534.7,2534.4,3.94568959]
[1748825892997,0.37677666,2534.6,2534.4,3.94568959]
[1748825893198,1.3059,2534.8,2534.4,3.94568959]
[1748825893396,0.37669911,2534.7,2534.4,3.94568959]
[1748825893598,0.37669911,2534.6,2534.4,3.94568959]
[1748825893798,1.3059,2534.8,2534.4,3.94568959]
[1748825894119,0.37671194,2534.7,2534.4,3.94568959]
[1748825894284,0.37671194,2534.6,2534.4,3.94568959]
[1748825894579,5.25098453,2534.8,2534.4,3.94568959]
[1748825894781,0.37673273,2534.7,2534.4,3.94568959]
[1748825895018,0.37673273,2534.6,2534.4,3.94568959]
[1748825895319,5.25098453,2534.8,2534.4,3.94568959]
[1748825895530,0.37690616,2534.7,2534.4,3.94568959]
[1748825895728,5.25098453,2534.8,2534.4,3.94568959]
[1748825895931,0.37692395,2534.7,2534.4,3.94568959]
[1748825896133,0.37692395,2534.6,2534.4,3.94568959]
[1748825896334,5.25098453,2534.8,2534.4,3.94568959]
[1748825896535,0.37695423,2534.7,2534.4,3.94568959]
[1748825896723,0.37695423,2534.6,2534.4,3.94568959]
[1748825896924,5.25098453,2534.8,2534.4,3.94568959]
[1748825897120,0.37687966,2534.7,2534.4,3.94568959]
[1748825897293,0.37687966,2534.6,2534.4,3.94568959]
[1748825897497,5.25098453,2534.8,2534.4,3.94568959]
[1748825897737,0.376919,2534.7,2534.0,1.37952]
[1748825898039,0.376919,2534.6,2534.5,3.94555139]
[1748825899301,0.376919,2534.6,2534.3,3.94578888]
[1748825899302,0.376919,2534.6,2534.4,3.94562709]
[1748825899623,4.49509818,2534.8,2534.4,3.94562709]
[1748825899931,0.37698871,2534.7,2534.4,3.94562709]
[1748825900111,0.37698871,2534.6,2534.4,3.94562709]
[1748825900297,0.55,2534.8,2534.4,3.94563477]
[1748825900502,0.37710692,2534.7,2534.4,3.94563477]
[1748825900702,0.37710692,2534.6,2534.4,3.94563477]
[1748825901001,0.55,2534.8,2534.4,3.94563477]
[1748825901204,0.37704754,2534.7,2534.4,3.94563477]
[1748825901405,0.37704754,2534.6,2534.4,3.94563477]
[1748825901601,4.49509966,2534.8,2534.4,3.94563477]
[1748825901801,0.37713114,2534.7,2534.4,3.94563477]
[1748825902113,0.37713114,2534.6,2534.4,3.94563477]
[1748825902316,0.37730227,2534.5,2534.3,3.94577428]
[1748825902635,4.49509966,2534.8,2534.3,3.94577428]
[1748825902832,0.37730087,2534.7,2534.3,3.94577428]
[1748825903038,0.37730087,2534.6,2534.3,3.94577428]
[1748825903248,0.37730087,2534.5,2534.3,3.94577428]
[1748825903555,4.49509966,2534.8,2534.3,3.94577428]
[1748825903843,0.37734039,2534.7,2534.3,3.94577428]
[1748825904156,0.37734039,2534.6,2534.3,3.94577428]
[1748825904342,0.37734039,2534.5,2534.3,3.94577428]
[1748825904543,4.49509966,2534.8,2534.3,4.81644804]
[1748825904726,0.37745976,2534.7,2534.3,3.94577428]
[1748825904918,4.49509966,2534.8,2534.3,3.94577428]
[1748825904919,0.37745976,2534.6,2534.3,3.94577428]
[1748825905119,0.37745976,2534.5,2534.3,3.94577428]
[1748825905320,4.49509966,2534.8,2534.3,3.94577428]
[1748825905628,0.37760283,2534.7,2534.5,4.75427403]
[1748825905831,0.37760283,2534.6,2534.5,4.75427403]
[1748825908948,3.96493096,2534.9,2534.5,4.75427403]
[1748825909246,0.37802678,2534.8,2534.5,4.75427403]
[1748825909445,0.37802678,2534.7,2534.5,0.8088]
[1748825909651,0.37802678,2534.6,2534.5,0.8088]
[1748825910559,0.37802678,2534.6,2534.3,3.94576294]
[1748825910560,0.37802678,2534.6,2534.3,4.76518741]
[1748825910718,0.37802678,2534.5,2534.3,4.76518741]
[1748825911053,3.94511301,2534.8,2534.4,3.94570426]
[1748825911257,0.37801877,2534.7,2534.4,3.94570426]
[1748825911459,0.37801877,2534.6,2534.4,3.94570426]
[1748825911650,0.37801877,2534.5,2534.4,3.94570426]
[1748825912461,0.37801877,2534.5,2534.3,4.76517612]
[1748825912656,4.43754346,2534.9,2534.4,3.94570591]
[1748825912863,0.37795881,2534.8,2534.4,3.94570591]
[1748825913159,0.37795881,2534.7,2534.4,3.94570591]
[1748825913327,0.37795881,2534.6,2534.4,3.94570591]
[1748825913528,0.37798068,2534.5,2534.4,3.94570591]
[1748825913827,0.37798068,2534.5,2534.4,4.81681289]
[1748825917966,0.37794776,2534.5,2534.4,4.81681405]
[1748825918167,0.37794691,2534.5,2534.4,0.87110698]
[1748825918367,0.37794691,2534.5,2534.4,4.81672513]
[1748825918672,0.02,2534.9,2534.7,3.94511772]
[1748825918872,0.37798372,2534.8,2534.7,3.94511772]
[1748825919373,0.37798372,2534.8,2534.6,3.94531006]
[1748825919570,0.02,2534.9,2534.6,3.94531006]
[1748825919777,0.37787949,2534.8,2534.6,3.94531006]
[1748825919970,0.02,2534.9,2534.6,3.94531006]
[1748825920137,0.37787136,2534.8,2534.6,3.94531006]
[1748825920470,0.02,2534.9,2534.6,4.67812809]
[1748825920677,0.37779888,2534.8,2534.6,4.67812809]
[1748825920975,0.02,2534.9,2534.6,4.67812809]
[1748825921141,0.3776802,2534.8,2534.6,4.67812809]
[1748825921336,0.02,2534.9,2534.6,4.67812809]
[1748825921692,0.37767261,2534.8,2534.7,3.94524006]
[1748825922280,0.37763857,2534.8,2534.7,3.94524006]
[1748825923067,0.37763857,2534.8,2534.7,4.88861398]
[1748825923586,0.37763857,2534.8,2534.6,3.94533498]
[1748825923889,0.02,2534.9,2534.7,3.94522361]
[1748825924092,0.37753403,2534.8,2534.7,3.94522361]
[1748825924589,0.37753403,2534.8,2534.6,3.94535662]
[1748825924793,0.02,2534.9,2534.6,3.94535662]
[1748825924954,0.3775076,2534.8,2534.6,3.94535662]
[1748825925150,0.02,2534.9,2534.6,3.94535662]
[1748825925355,0.37749121,2534.8,2534.6,3.94535662]
[1748825925591,0.02,2534.9,2534.6,3.94535662]
[1748825925793,0.37749295,2534.8,2534.6,3.94535662]
[1748825926090,0.02,2534.9,2534.6,3.94535662]
[1748825926296,0.37747967,2534.8,2534.6,3.9453819]
[1748825926480,0.02,2534.9,2534.6,3.9453819]
[1748825926682,0.37747588,2534.8,2534.6,3.9453819]
[1748825926868,0.02,2534.9,2534.6,3.9453819]
[1748825927064,0.37747404,2534.8,2534.6,3.9453819]
[1748825927273,0.02,2534.9,2534.7,3.9452247]
[1748825927569,0.37746766,2534.8,2534.7,3.9452247]
[1748825929755,0.02,2534.9,2534.7,3.9452247]
[1748825930171,0.02,2534.9,2534.6,3.94526021]
[1748825930496,0.02,2534.9,2534.6,3.94539572]
[1748825930793,0.02,2534.9,2534.7,3.94521079]
[1748825931991,0.02,2534.9,2534.6,3.94539572]
[1748825932158,0.02,2534.9,2534.8,4.74138442]
[1748825932562,0.02,2534.9,2534.8,6.93273416]
[1748825933170,0.02,2534.9,2534.8,4.74138442]
[1748825942078,0.02,2534.9,2534.8,3.94508442]
[1748825942900,0.02,2534.9,2534.4,1.68060698]
[1748825943107,0.02,2534.9,2534.7,3.94523097]
[1748825943589,0.02,2534.9,2534.6,3.94530809]
[1748825943919,0.833,2534.9,2534.5,3.94543451]
[1748825944196,0.833,2534.9,2534.6,3.94532619]
[1748825944398,0.833,2534.9,2534.6,3.9452865]
[1748825944601,0.833,2534.9,2534.8,3.94508442]
[1748825944792,0.02,2534.9,2534.7,3.94517039]
[1748825944994,0.02,2534.9,2534.8,3.94508442]
[1748825948717,0.02,2534.9,2534.7,3.94515507]
[1748825948923,0.02,2534.9,2534.8,3.94508442]
[1748825949490,0.02,2534.9,2534.7,3.94514118]
[1748825952322,0.02,2534.9,2534.5,3.94550914]
[1748825952619,3.96496531,2534.9,2534.5,1.16882799]
[1748825952802,3.96496531,2534.9,2534.4,3.94563466]
[1748825953124,0.02,2534.9,2534.5,3.94554679]
[1748825954624,0.02,2534.9,2534.5,3.94551664]
[1748825954825,3.96494129,2534.9,2534.5,3.94551664]
[1748825955029,0.02,2534.9,2534.5,3.94551664]
[1748825956831,0.02,2534.9,2534.4,3.94570707]
[1748825957126,0.02,2534.9,2534.5,0.47327071]
[1748825957726,3.96493618,2534.9,2534.5,0.47327071]
[1748825957925,3.96493618,2534.9,2534.4,3.94562283]
[1748825958137,0.02,2534.9,2534.5,3.94547587]
[1748825958328,0.02,2534.9,2534.6,3.94535629]
[1748825958498,0.02,2534.9,2534.8,3.94508442]
[1748825960428,0.02,2534.9,2534.7,3.94515854]
[1748825963138,0.02,2534.9,2534.6,4.70441499]
[1748825963310,0.02,2534.9,2534.6,5.56940893]
[1748825963640,0.02,2534.9,2534.7,3.94521938]
[1748825964644,0.02,2534.9,2534.6,4.81033294]
[1748825964838,0.02,2534.9,2534.6,3.945339]
[1748825965550,0.02,2534.9,2534.7,3.94519113]
[1748825965715,0.02,2534.9,2534.8,3.94508442]
[1748825968097,0.02,2534.9,2534.7,4.76069307]
[1748825969012,0.02,2534.9,2534.8,3.94508442]
[1748825969430,0.02,2534.9,2534.7,4.76067518]
[1748825969643,0.02,2534.9,2534.7,5.6312797]
[1748825971240,0.02,2534.9,2534.7,3.94517518]
[1748825971937,0.02,2534.9,2534.7,3.94521848]
[1748825972730,0.02,2534.9,2534.7,3.94522522]
[1748825973544,0.02,2534.9,2534.8,3.98453224]
[1748825973717,0.02,2534.9,2534.8,3.94508442]
[1748825973911,0.02,2534.9,2534.8,4.33959286]
[1748825975153,0.02,2534.9,2534.8,0.39450844]
[1748825975853,0.02,2534.9,2534.6,3.94531742]
[1748825976423,0.02,2534.9,2534.7,3.94522509]
[1748825977021,0.02,2534.9,2534.6,3.94531158]
[1748825977647,0.02,2534.9,2534.7,3.94514771]
[1748825980767,0.02,2534.9,2534.8,3.94508442]
[1748825982246,0.02,2534.9,2534.7,3.94516102]
[1748825982432,0.02,2534.9,2534.8,3.94508442]
[1748825983367,0.02,2534.9,2534.7,3.94515079]
[1748825983670,0.02,2534.9,2534.8,3.94508442]
[1748825983839,0.02,2534.9,2534.7,3.94513685]
[1748825984039,0.02,2534.9,2534.6,3.94535294]
[1748825984244,0.02,2534.9,2534.8,3.94508442]
[1748825987131,0.02,2534.9,2534.7,4.42161681]
[1748825987534,0.02,2534.9,2534.8,3.94508442]
[1748825987760,0.02,2534.9,2534.7,4.42168695]
[1748825989366,0.02,2534.9,2534.8,3.94508442]
[1748825989562,0.02,2534.9,2534.8,4.78176886]
[1748825992476,0.02,2534.9,2534.8,0.83668444]
[1748825992837,0.02,2534.9,2534.8,4.78176886]
[1748825993967,0.02,2534.9,2534.8,0.83668444]
[1748825994287,0.02,2534.9,2534.8,4.78176886]
[1748825994686,0.02,2534.9,2534.8,0.83668444]
[1748825994891,0.02,2534.9,2534.8,4.78176886]
[1748825995190,0.02,2534.9,2534.8,0.83668444]
[1748825995762,0.02,2534.9,2534.8,4.78176886]
[1748825996070,0.02,2534.9,2534.8,0.83668444]
[1748825996566,0.02,2534.9,2534.5,0.8193]
[1748825996786,0.02,2534.9,2534.6,3.94530103]
[1748825997090,0.02,2534.9,2534.5,4.76476776]
[1748825997592,0.02,2534.9,2534.8,3.94508442]
[1748825997986,0.02,2534.9,2534.7,3.94516412]
[1748825998182,0.02,2534.9,2534.7,4.81614521]
[1748825998905,0.02,2534.9,2534.8,3.94508442]
[1748826000016,0.02,2534.9,2534.7,4.81615132]
[1748826000394,0.02,2534.9,2534.8,11.98453102]
[1748826000563,0.02,2534.9,2534.8,12.73158442]
[1748826000759,0.02,2534.9,2534.8,6.70543873]
[1748826001008,0.02,2534.9,2534.8,4.73158442]
[1748826001162,0.02,2534.9,2534.8,3.94508442]
[1748826003066,0.01408249,2534.9,2534.8,3.94508442]
[1748826003504,0.01408249,2534.9,2534.8,12.73138442]
[1748826004785,0.01408249,2534.9,2534.8,13.22639031]
[1748826004985,0.01408249,2534.9,2534.8,15.24973024]
[1748826006702,0.01408249,2534.9,2534.8,17.99053758]
[1748826006892,0.01408249,2534.9,2534.8,15.79973024]
[1748826007311,0.01408249,2534.9,2534.8,18.53582067]
[1748826008443,0.02,2535.9,2535.8,4.75292866]
[1748826008588,0.02,2535.9,2535.8,8.35867816]
[1748826009899,0.02,2535.9,2535.8,16.35867816]
[1748826012522,0.02,2535.9,2535.8,13.62258773]
[1748826012890,0.02,2535.9,2535.8,12.81318773]
[1748826018907,0.02,2535.9,2535.8,15.54927816]
[1748826025144,0.02,2535.9,2535.8,16.32687816]
[1748826031764,0.02,2535.9,2535.8,13.59078773]
[1748826033867,0.02,2535.9,2535.8,16.32687816]
[1748826037170,0.02,2535.9,2535.8,13.59078773]
[1748826040145,0.02,2535.9,2535.8,16.32687816]
[1748826043355,0.02,2535.9,2535.8,12.81318773]
[1748826044041,0.02,2535.9,2535.8,4.81318773]
[1748826044242,0.02,2535.9,2535.8,12.81318773]
[1748826044651,0.8418,2535.9,2535.8,0.86965907]
[1748826044856,0.8418,2535.9,2535.3,8.0]
[1748826045074,0.8418,2535.9,2535.2,15.82509043]
[1748826045075,0.8418,2535.9,2535.6,3.94370295]
[1748826045682,0.8418,2535.9,2535.7,3.94361066]
[1748826045855,0.8418,2535.9,2535.6,3.94370295]
[1748826045856,0.8418,2535.9,2535.8,3.94352866]
[1748826047142,0.8418,2535.9,2535.7,3.94360595]
[1748826048281,0.8418,2535.9,2535.7,3.94368418]
[1748826048578,0.8418,2535.9,2535.8,3.94352866]
[1748826050358,0.02,2535.9,2535.8,3.94352866]
[1748826051753,0.02,2535.9,2535.8,4.73224842]
[1748826055389,0.8412,2535.9,2535.4,10.71612962]
[1748826055589,0.8412,2535.9,2535.6,3.94383398]
[1748826055972,0.8412,2535.9,2535.4,4.036]
[1748826055973,4.78468059,2535.9,2535.4,3.94413346]
[1748826056177,0.8412,2535.9,2535.3,8.0]
[1748826056353,0.8412,2535.9,2535.6,3.94377225]
[1748826057165,0.8412,2535.9,2535.5,3.94394482]
[1748826057671,4.78457735,2535.9,2535.4,3.94409282]
[1748826057876,4.78458943,2535.9,2535.3,11.94428961]
[1748826058091,0.8412,2535.9,2535.4,3.94415082]
[1748826058308,0.8412,2535.9,2535.6,3.9437336]
[1748826059180,0.8412,2535.9,2535.6,3.94380304]
[1748826059790,0.8412,2535.9,2535.7,3.94362307]
[1748826060210,0.8412,2535.9,2535.6,3.94375207]
[1748826060505,0.8412,2535.9,2535.7,3.94365625]
[1748826060872,0.8412,2535.9,2535.5,3.94392233]
[1748826061109,0.8412,2535.9,2535.6,3.94383439]
[1748826063200,0.8412,2535.9,2535.5,5.94254367]
[1748826063383,0.8412,2535.9,2535.6,3.94377096]
[1748826063579,0.8412,2535.9,2535.5,5.94255766]
[1748826063791,0.8412,2535.9,2535.6,3.9438311]
[1748826065295,0.8412,2535.9,2535.5,5.94259692]
[1748826065499,4.78460124,2535.9,2535.4,3.94407644]
[1748826065997,0.8412,2535.9,2535.5,3.94398008]
[1748826066403,4.78461709,2535.9,2535.4,3.94407037]
[1748826066608,0.8412,2535.9,2535.6,3.94382678]
[1748826066909,0.8412,2535.9,2535.5,3.94392602]
[1748826067108,0.8412,2535.9,2535.6,3.94382428]
[1748826068209,0.8412,2535.9,2535.5,0.03943724]
[1748826068513,0.8412,2535.9,2535.7,3.94357545]
[1748826069401,0.8412,2535.9,2535.8,3.94352866]
[1748826072288,0.8412,2535.9,2535.7,3.94360112]
[1748826073334,0.8412,2535.9,2535.8,3.94352866]
[1748826074117,0.8412,2535.9,2535.7,3.94360823]
[1748826075886,0.8412,2535.9,2535.6,3.94378066]
[1748826076086,0.8412,2535.9,2535.6,5.11112116]
[1748826079741,0.8412,2535.9,2535.5,5.18915461]
[1748826080636,0.8412,2535.9,2535.6,3.9438246]
[1748826081236,0.8412,2535.9,2535.5,5.18916375]
[1748826081828,0.8412,2535.9,2535.4,5.66050098]
[1748826082136,4.7846596,2535.9,2535.4,3.94413733]
[1748826082314,0.37825987,2535.8,2535.4,3.94413733]
[1748826082515,4.7846596,2535.9,2535.4,3.94413733]
[1748826082727,0.37827316,2535.8,2535.4,3.94413733]
[1748826082920,4.7846596,2535.9,2535.4,3.94413733]
[1748826083136,0.37827527,2535.8,2535.4,3.94413733]
[1748826083352,4.7846596,2535.9,2535.4,3.94413733]
[1748826083542,0.37831374,2535.8,2535.4,3.94413733]
[1748826083746,5.19651334,2535.7,2535.0,0.8145]
[1748826084044,0.7842,2535.3,2534.9,3.94485139]
[1748826085314,0.7842,2535.3,2535.0,3.9447718]
[1748826086119,0.7842,2535.3,2534.9,4.83888905]
[1748826087254,0.7842,2535.3,2534.9,0.89401518]
[1748826087554,0.7842,2535.3,2534.9,4.83883948]
[1748826088735,0.7842,2535.3,2535.0,3.9447674]
[1748826090255,0.7842,2535.3,2534.9,4.83891488]
[1748826090617,0.7842,2535.3,2535.0,3.9447626]
[1748826093558,0.7842,2535.3,2535.0,3.94477224]
[1748826093870,0.7842,2535.3,2534.9,4.83888558]
[1748826095645,0.7842,2535.3,2535.0,3.94473116]
[1748826096563,0.7842,2535.3,2535.1,3.94451367]
[1748826096870,4.033,2535.4,2535.2,3.94446197]
[1748826097367,0.8327,2535.5,2535.4,3.94415082]
[1748826097565,0.8327,2535.5,2535.0,3.7194521]
[1748826097566,1.21002098,2535.8,2535.5,3.94392368]
[1748826097729,0.8327,2535.8,2535.5,3.94392368]
[1748826097929,0.8327,2535.8,2535.4,3.94412183]
[1748826098741,0.8327,2535.8,2535.2,0.774]
[1748826099063,4.77625431,2535.8,2535.3,3.94426632]
[1748826099267,0.8327,2535.8,2535.4,3.94414091]
[1748826099650,4.8657,2535.8,2535.4,3.94414091]
[1748826100031,4.8657,2535.8,2535.3,3.94422115]
[1748826102374,0.8327,2535.8,2535.3,3.94422115]
[1748826102578,4.7762649,2535.8,2535.3,4.81745629]